[Event "Titled Tuesday Blitz November 22 Late 2022"]
[White "Aghasiyev, Kamal"]
[Black "Curtis, John"]
[WhiteFideId "13402854"]
[BlackFideId "3200256"]
[WhiteElo "2341"]
[BlackElo "2203"]
[Result "1-0"]
[Round "01"]
[TimeControl "180+1"]
[Date "2022.11.23"]
[WhiteClock "0:00:43"]
[BlackClock "0:01:26"]

1. d4 {[%clk 0:02:57]}  Nf6 {[%clk 0:02:57]} 2. c4 {[%clk 0:02:53]}  e6 {[%clk 0:02:56]} 3. Nf3 {[%clk 0:02:51]}  d5 {[%clk 0:02:57]} 4. g3 {[%clk 0:02:51]}  Be7 {[%clk 0:02:56]} 5. Bg2 {[%clk 0:02:51]}  O-O {[%clk 0:02:56]} 6. O-O {[%clk 0:02:50]}  dxc4 {[%clk 0:02:54]} 7. Qc2 {[%clk 0:02:50]}  Nc6 {[%clk 0:02:54]} 8. Qxc4 {[%clk 0:02:48]}  Bd7 {[%clk 0:02:52]} 9. Rd1 {[%clk 0:02:39]}  a6 {[%clk 0:02:51]} 10. Nc3 {[%clk 0:02:33]}  b5 {[%clk 0:02:51]} 11. Qd3 {[%clk 0:02:32]}  Nb4 {[%clk 0:02:51]} 12. Qb1 {[%clk 0:02:30]}  Rb8 {[%clk 0:02:50]} 13. a3 {[%clk 0:02:30]}  Nbd5 {[%clk 0:02:51]} 14. Nxd5 {[%clk 0:02:28]}  exd5 {[%clk 0:02:50]} 15. Bf4 {[%clk 0:02:25]}  Ne4 {[%clk 0:02:49]} 16. Qc2 {[%clk 0:02:21]}  Rc8 {[%clk 0:02:46]} 17. b4 {[%clk 0:02:17]}  c6 {[%clk 0:02:31]} 18. Ne5 {[%clk 0:02:12]}  Nd6 {[%clk 0:02:30]} 19. Nd3 {[%clk 0:01:58]}  Bf5 {[%clk 0:02:26]} 20. Qb3 {[%clk 0:01:53]}  Nc4 {[%clk 0:02:16]} 21. Nb2 {[%clk 0:01:45]}  a5 {[%clk 0:02:09]} 22. Nxc4 {[%clk 0:01:33]}  bxc4 {[%clk 0:02:09]} 23. Qc3 {[%clk 0:01:33]}  axb4 {[%clk 0:02:09]} 24. axb4 {[%clk 0:01:33]}  Qb6 {[%clk 0:02:07]} 25. Bd2 {[%clk 0:01:29]}  Ra8 {[%clk 0:01:57]} 26. e4 {[%clk 0:01:25]}  Be6 {[%clk 0:01:54]} 27. Rab1 {[%clk 0:01:11]}  Rfb8 {[%clk 0:01:50]} 28. b5 {[%clk 0:01:10]}  dxe4 {[%clk 0:01:45]} 29. Bxe4 {[%clk 0:01:07]}  Bd5 {[%clk 0:01:45]} 30. Qf3 {[%clk 0:00:55]}  Bf6 {[%clk 0:01:37]} 31. bxc6 {[%clk 0:00:53]}  Bxe4 {[%clk 0:01:37]} 32. Qxe4 {[%clk 0:00:52]}  Qxd4 {[%clk 0:01:36]} 33. Rxb8+ {[%clk 0:00:46]}  Rxb8 {[%clk 0:01:36]} 34. Qxd4 {[%clk 0:00:46]}  Bxd4 {[%clk 0:01:35]} 35. Bf4 {[%clk 0:00:46]}  Rc8 {[%clk 0:01:29]} 36. Rxd4 {[%clk 0:00:46]}  g5 {[%clk 0:01:28]} 37. c7 {[%clk 0:00:43]}  Rxc7 {[%clk 0:01:26]} 38. Bxc7 {[%clk 0:00:43]}  c3 {[%clk 0:01:26]} 1-0


[Site "https://www.chess.com"]

[Event "Titled Tuesday Blitz November 22 Late 2022"]
[White "Al-Tarboush, Ward"]
[Black "Caruana, Fabiano"]
[WhiteFideId "7601450"]
[BlackFideId "2020009"]
[WhiteElo "2273"]
[BlackElo "2847"]
[Result "0-1"]
[Round "01"]
[TimeControl "180+1"]
[Date "2022.11.22"]
[WhiteClock "0:00:01"]
[BlackClock "0:00:04"]

1. e4 {[%clk 0:02:59]}  d6 {[%clk 0:02:58]} 2. d4 {[%clk 0:02:58]}  Nf6 {[%clk 0:02:58]} 3. Nc3 {[%clk 0:02:57]}  g6 {[%clk 0:02:57]} 4. Be3 {[%clk 0:02:55]}  c6 {[%clk 0:02:54]} 5. f3 {[%clk 0:02:54]}  b5 {[%clk 0:02:52]} 6. Qd2 {[%clk 0:02:48]}  Nbd7 {[%clk 0:02:52]} 7. h4 {[%clk 0:02:48]}  Nb6 {[%clk 0:02:51]} 8. g4 {[%clk 0:02:44]}  h5 {[%clk 0:02:43]} 9. g5 {[%clk 0:02:39]}  Nfd7 {[%clk 0:02:42]} 10. f4 {[%clk 0:02:39]}  d5 {[%clk 0:02:18]} 11. e5 {[%clk 0:02:37]}  Nb8 {[%clk 0:02:16]} 12. b3 {[%clk 0:02:28]}  Bf5 {[%clk 0:02:11]} 13. Nge2 {[%clk 0:02:28]}  e6 {[%clk 0:02:10]} 14. Ng3 {[%clk 0:02:27]}  Bg4 {[%clk 0:02:10]} 15. Nd1 {[%clk 0:02:20]}  a5 {[%clk 0:02:05]} 16. Nf2 {[%clk 0:02:20]}  Bf3 {[%clk 0:02:04]} 17. Rg1 {[%clk 0:02:13]}  N8d7 {[%clk 0:02:03]} 18. Qd3 {[%clk 0:02:12]}  Bb4+ {[%clk 0:01:38]} 19. c3 {[%clk 0:02:11]}  Ba3 {[%clk 0:01:38]} 20. Bc1 {[%clk 0:02:09]}  Bxc1 {[%clk 0:01:37]} 21. Rxc1 {[%clk 0:02:09]}  Bg4 {[%clk 0:01:35]} 22. Nxg4 {[%clk 0:02:04]}  hxg4 {[%clk 0:01:36]} 23. Rh1 {[%clk 0:02:05]}  Qe7 {[%clk 0:01:34]} 24. Be2 {[%clk 0:01:59]}  Qa3 {[%clk 0:01:34]} 25. Qc2 {[%clk 0:01:55]}  c5 {[%clk 0:01:21]} 26. Bxb5 {[%clk 0:01:51]}  cxd4 {[%clk 0:01:20]} 27. Bxd7+ {[%clk 0:01:49]}  Nxd7 {[%clk 0:01:11]} 28. cxd4 {[%clk 0:01:49]}  O-O {[%clk 0:01:07]} 29. h5 {[%clk 0:01:14]}  Qb4+ {[%clk 0:01:02]} 30. Qd2 {[%clk 0:01:12]}  Rfc8 {[%clk 0:00:46]} 31. Rxc8+ {[%clk 0:00:55]}  Rxc8 {[%clk 0:00:47]} 32. Qxb4 {[%clk 0:00:44]}  axb4 {[%clk 0:00:48]} 33. Kd2 {[%clk 0:00:43]}  Ra8 {[%clk 0:00:48]} 34. Ra1 {[%clk 0:00:42]}  gxh5 {[%clk 0:00:44]} 35. Nxh5 {[%clk 0:00:43]}  Kh7 {[%clk 0:00:41]} 36. Ke3 {[%clk 0:00:23]}  Kg6 {[%clk 0:00:40]} 37. Ng3 {[%clk 0:00:22]}  Rc8 {[%clk 0:00:32]} 38. Rd1 {[%clk 0:00:16]}  Rc3+ {[%clk 0:00:27]} 39. Rd3 {[%clk 0:00:16]}  Rc1 {[%clk 0:00:27]} 40. Rd2 {[%clk 0:00:13]}  Nb8 {[%clk 0:00:21]} 41. Rh2 {[%clk 0:00:08]}  Rc3+ {[%clk 0:00:21]} 42. Kf2 {[%clk 0:00:08]}  Rf3+ {[%clk 0:00:15]} 43. Kg2 {[%clk 0:00:05]}  Rxf4 {[%clk 0:00:15]} 44. Rh8 {[%clk 0:00:03]}  Nc6 {[%clk 0:00:10]} 45. Rg8+ {[%clk 0:00:03]}  Kh7 {[%clk 0:00:11]} 46. Rc8 {[%clk 0:00:03]}  Rxd4 {[%clk 0:00:11]} 47. Rxc6 {[%clk 0:00:02]}  Rd2+ {[%clk 0:00:12]} 48. Kg1 {[%clk 0:00:03]}  Kg6 {[%clk 0:00:12]} 49. Rb6 {[%clk 0:00:02]}  Kxg5 {[%clk 0:00:12]} 50. Rxb4 {[%clk 0:00:02]}  Rxa2 {[%clk 0:00:13]} 51. Nf1 {[%clk 0:00:02]}  Kf5 {[%clk 0:00:12]} 52. Rb7 {[%clk 0:00:03]}  Kxe5 {[%clk 0:00:10]} 53. Rxf7 {[%clk 0:00:03]}  d4 {[%clk 0:00:11]} 54. Rg7 {[%clk 0:00:03]}  Kf4 {[%clk 0:00:10]} 55. Rf7+ {[%clk 0:00:03]}  Ke4 {[%clk 0:00:10]} 56. Rg7 {[%clk 0:00:04]}  Kf5 {[%clk 0:00:07]} 57. Rf7+ {[%clk 0:00:04]}  Kg6 {[%clk 0:00:08]} 58. Rd7 {[%clk 0:00:04]}  e5 {[%clk 0:00:08]} 59. b4 {[%clk 0:00:04]}  Kf5 {[%clk 0:00:08]} 60. Rf7+ {[%clk 0:00:04]}  Ke4 {[%clk 0:00:07]} 61. Rg7 {[%clk 0:00:05]}  Kf5 {[%clk 0:00:07]} 62. Rf7+ {[%clk 0:00:05]}  Ke6 {[%clk 0:00:08]} 63. Rg7 {[%clk 0:00:05]}  d3 {[%clk 0:00:07]} 64. Rxg4 {[%clk 0:00:04]}  Rb2 {[%clk 0:00:06]} 65. Rc4 {[%clk 0:00:02]}  Rc2 {[%clk 0:00:04]} 66. Re4 {[%clk 0:00:01]}  Kd5 {[%clk 0:00:04]} 67. Re3 {[%clk 0:00:01]}  e4 {[%clk 0:00:04]} 68. Re1 {[%clk 0:00:01]}  Kd4 {[%clk 0:00:04]} 69. b5 {[%clk 0:00:01]}  Rb2 {[%clk 0:00:04]} 70. Ng3 {[%clk 0:00:01]}  d2 {[%clk 0:00:03]} 71. Rxe4+ {[%clk 0:00:01]}  Kd3 {[%clk 0:00:04]} 0-1


[Site "https://www.chess.com"]

[Event "Titled Tuesday Blitz November 22 Late 2022"]
[White "Andreikin, Dmitry"]
[Black "Ozdemir, Serhan Berat"]
[WhiteFideId "4158814"]
[BlackFideId "6374611"]
[WhiteElo "2736"]
[BlackElo "2016"]
[Result "1-0"]
[Round "01"]
[TimeControl "180+1"]
[Date "2022.11.22"]
[WhiteClock "0:02:02"]
[BlackClock "0:00:14"]

1. d4 {[%clk 0:02:58]}  Nf6 {[%clk 0:02:58]} 2. c4 {[%clk 0:02:58]}  g6 {[%clk 0:02:57]} 3. Nc3 {[%clk 0:02:58]}  Bg7 {[%clk 0:02:57]} 4. e4 {[%clk 0:02:57]}  d6 {[%clk 0:02:58]} 5. h3 {[%clk 0:02:56]}  O-O {[%clk 0:02:53]} 6. Be3 {[%clk 0:02:56]}  c5 {[%clk 0:02:50]} 7. Nf3 {[%clk 0:02:56]}  cxd4 {[%clk 0:02:48]} 8. Nxd4 {[%clk 0:02:56]}  Nc6 {[%clk 0:02:49]} 9. Be2 {[%clk 0:02:55]}  Nxd4 {[%clk 0:02:36]} 10. Bxd4 {[%clk 0:02:56]}  Bd7 {[%clk 0:02:37]} 11. O-O {[%clk 0:02:56]}  Bc6 {[%clk 0:02:37]} 12. Qc2 {[%clk 0:02:56]}  a5 {[%clk 0:02:16]} 13. Rfd1 {[%clk 0:02:56]}  Nd7 {[%clk 0:02:15]} 14. Bxg7 {[%clk 0:02:55]}  Kxg7 {[%clk 0:02:16]} 15. Bg4 {[%clk 0:02:55]}  Ne5 {[%clk 0:01:58]} 16. c5 {[%clk 0:02:55]}  Nxg4 {[%clk 0:01:56]} 17. hxg4 {[%clk 0:02:56]}  Qc8 {[%clk 0:01:50]} 18. cxd6 {[%clk 0:02:56]}  exd6 {[%clk 0:01:50]} 19. f3 {[%clk 0:02:55]}  Qe6 {[%clk 0:01:44]} 20. Rd4 {[%clk 0:02:54]}  Rfd8 {[%clk 0:01:44]} 21. Rad1 {[%clk 0:02:54]}  Qe5 {[%clk 0:01:31]} 22. Qd2 {[%clk 0:02:53]}  h5 {[%clk 0:01:25]} 23. gxh5 {[%clk 0:02:48]}  Qxh5 {[%clk 0:01:22]} 24. Rxd6 {[%clk 0:02:48]}  Rxd6 {[%clk 0:01:16]} 25. Qxd6 {[%clk 0:02:48]}  Rh8 {[%clk 0:01:11]} 26. Kf2 {[%clk 0:02:46]}  Qh4+ {[%clk 0:01:07]} 27. Ke2 {[%clk 0:02:45]}  Qg5 {[%clk 0:01:03]} 28. Qd4+ {[%clk 0:02:45]}  Kg8 {[%clk 0:01:03]} 29. Qd8+ {[%clk 0:02:45]}  Qxd8 {[%clk 0:01:03]} 30. Rxd8+ {[%clk 0:02:44]}  Kg7 {[%clk 0:01:03]} 31. Rxh8 {[%clk 0:02:43]}  Kxh8 {[%clk 0:01:04]} 32. Kd3 {[%clk 0:02:41]}  Kg7 {[%clk 0:01:05]} 33. f4 {[%clk 0:02:41]}  Kf6 {[%clk 0:01:05]} 34. g3 {[%clk 0:02:41]}  Ke6 {[%clk 0:01:06]} 35. Kd4 {[%clk 0:02:40]}  Kd6 {[%clk 0:01:04]} 36. a3 {[%clk 0:02:34]}  b6 {[%clk 0:01:01]} 37. Nd5 {[%clk 0:02:32]}  b5 {[%clk 0:00:58]} 38. Ne3 {[%clk 0:02:28]}  Bd7 {[%clk 0:00:54]} 39. e5+ {[%clk 0:02:26]}  Kc6 {[%clk 0:00:54]} 40. b4 {[%clk 0:02:25]}  axb4 {[%clk 0:00:52]} 41. axb4 {[%clk 0:02:26]}  Be6 {[%clk 0:00:51]} 42. g4 {[%clk 0:02:26]}  Bb3 {[%clk 0:00:49]} 43. f5 {[%clk 0:02:26]}  gxf5 {[%clk 0:00:49]} 44. gxf5 {[%clk 0:02:26]}  Kb6 {[%clk 0:00:50]} 45. Ke4 {[%clk 0:02:10]}  Kc6 {[%clk 0:00:50]} 46. Kf4 {[%clk 0:02:11]}  Kd7 {[%clk 0:00:50]} 47. Kg5 {[%clk 0:02:11]}  Ke7 {[%clk 0:00:50]} 48. Ng4 {[%clk 0:02:11]}  Bc2 {[%clk 0:00:42]} 49. Nf6 {[%clk 0:02:11]}  Bb3 {[%clk 0:00:42]} 50. Kh6 {[%clk 0:02:09]}  Kf8 {[%clk 0:00:39]} 51. Nh7+ {[%clk 0:02:07]}  Kg8 {[%clk 0:00:33]} 52. Ng5 {[%clk 0:02:05]}  Bc2 {[%clk 0:00:26]} 53. f6 {[%clk 0:02:05]}  Bb3 {[%clk 0:00:22]} 54. Nf3 {[%clk 0:02:05]}  Ba2 {[%clk 0:00:18]} 55. Nd4 {[%clk 0:02:06]}  Bc4 {[%clk 0:00:19]} 56. Nf5 {[%clk 0:02:06]}  Kf8 {[%clk 0:00:17]} 57. Nd6 {[%clk 0:02:01]}  Bd3 {[%clk 0:00:17]} 58. Kg5 {[%clk 0:02:02]}  Be2 {[%clk 0:00:17]} 59. Kf4 {[%clk 0:02:01]}  Bf1 {[%clk 0:00:17]} 60. Ke3 {[%clk 0:02:01]}  Kg8 {[%clk 0:00:13]} 61. Kd4 {[%clk 0:02:02]}  Kh7 {[%clk 0:00:14]} 62. Nxf7 {[%clk 0:02:02]}  Kg6 {[%clk 0:00:14]} 63. Nd6 {[%clk 0:02:02]} 1-0


[Site "https://www.chess.com"]

[Event "Titled Tuesday Blitz November 22 Late 2022"]
[White "Antonio, Jorge Carlos"]
[Black "Obrien, Matthew"]
[WhiteFideId "113190"]
[BlackFideId "2059150"]
[WhiteElo "2247"]
[BlackElo "2608"]
[Result "0-1"]
[Round "01"]
[TimeControl "180+1"]
[Date "2022.11.23"]
[WhiteClock "0:00:54"]
[BlackClock "0:00:28"]

1. d4 {[%clk 0:02:17]}  Nf6 {[%clk 0:02:56]} 2. Nf3 {[%clk 0:02:16]}  g6 {[%clk 0:02:55]} 3. c4 {[%clk 0:02:16]}  Bg7 {[%clk 0:02:55]} 4. Nc3 {[%clk 0:02:16]}  O-O {[%clk 0:02:55]} 5. e4 {[%clk 0:02:15]}  d6 {[%clk 0:02:55]} 6. Be2 {[%clk 0:02:15]}  Nbd7 {[%clk 0:02:55]} 7. O-O {[%clk 0:02:15]}  e5 {[%clk 0:02:55]} 8. d5 {[%clk 0:02:13]}  Nc5 {[%clk 0:02:54]} 9. Bd3 {[%clk 0:02:10]}  Nh5 {[%clk 0:02:54]} 10. b4 {[%clk 0:02:05]}  Nxd3 {[%clk 0:02:52]} 11. Qxd3 {[%clk 0:02:04]}  a5 {[%clk 0:02:48]} 12. b5 {[%clk 0:02:01]}  h6 {[%clk 0:02:44]} 13. a4 {[%clk 0:02:00]}  Kh7 {[%clk 0:02:42]} 14. Be3 {[%clk 0:01:59]}  f5 {[%clk 0:02:32]} 15. Rac1 {[%clk 0:01:57]}  b6 {[%clk 0:02:29]} 16. Ne1 {[%clk 0:01:47]}  f4 {[%clk 0:02:23]} 17. Bd2 {[%clk 0:01:47]}  g5 {[%clk 0:02:20]} 18. f3 {[%clk 0:01:47]}  g4 {[%clk 0:01:41]} 19. Kf2 {[%clk 0:01:41]}  Qh4+ {[%clk 0:01:30]} 20. Kg1 {[%clk 0:01:39]}  g3 {[%clk 0:00:48]} 21. h3 {[%clk 0:01:31]}  Bf6 {[%clk 0:00:39]} 22. Qe2 {[%clk 0:01:29]}  Rg8 {[%clk 0:00:38]} 23. Nd3 {[%clk 0:01:15]}  Bxh3 {[%clk 0:00:36]} 24. gxh3 {[%clk 0:01:14]}  g2 {[%clk 0:00:34]} 25. Rf2 {[%clk 0:01:08]}  Qxh3 {[%clk 0:00:34]} 26. Rxg2 {[%clk 0:01:08]}  Rxg2+ {[%clk 0:00:32]} 27. Qxg2 {[%clk 0:01:07]}  Rg8 {[%clk 0:00:32]} 28. Qxg8+ {[%clk 0:01:06]}  Kxg8 {[%clk 0:00:33]} 29. Rf1 {[%clk 0:00:55]}  Ng3 {[%clk 0:00:28]} 30. Rf2 {[%clk 0:00:54]}  Qh1# {[%clk 0:00:28]} 0-1


[Site "https://www.chess.com"]

[Event "Titled Tuesday Blitz November 22 Late 2022"]
[White "Arngrimsson, Dagur"]
[Black "Antonova, Nadezhda"]
[WhiteFideId "2301288"]
[BlackFideId "14700182"]
[WhiteElo "2286"]
[BlackElo "1813"]
[Result "1-0"]
[Round "01"]
[TimeControl "180+1"]
[Date "2022.11.23"]
[WhiteClock "0:01:22"]
[BlackClock "0:00:01"]

1. e4 {[%clk 0:03:00]}  c5 {[%clk 0:02:58]} 2. Nf3 {[%clk 0:02:59]}  d6 {[%clk 0:02:58]} 3. d4 {[%clk 0:02:59]}  cxd4 {[%clk 0:02:58]} 4. Nxd4 {[%clk 0:03:00]}  Nf6 {[%clk 0:02:58]} 5. Nc3 {[%clk 0:03:00]}  a6 {[%clk 0:02:58]} 6. h3 {[%clk 0:03:00]}  e5 {[%clk 0:02:57]} 7. Nb3 {[%clk 0:03:00]}  h5 {[%clk 0:02:36]} 8. f4 {[%clk 0:02:56]}  Be7 {[%clk 0:02:28]} 9. a4 {[%clk 0:02:40]}  Nc6 {[%clk 0:02:20]} 10. Be2 {[%clk 0:02:35]}  b6 {[%clk 0:01:59]} 11. Bf3 {[%clk 0:02:18]}  Bb7 {[%clk 0:01:56]} 12. Nd5 {[%clk 0:02:18]}  Nxd5 {[%clk 0:01:42]} 13. exd5 {[%clk 0:02:19]}  Nb8 {[%clk 0:01:18]} 14. O-O {[%clk 0:02:15]}  Nd7 {[%clk 0:01:14]} 15. Bxh5 {[%clk 0:02:08]}  O-O {[%clk 0:01:06]} 16. c3 {[%clk 0:01:47]}  Rc8 {[%clk 0:01:00]} 17. Bf3 {[%clk 0:01:43]}  Rc4 {[%clk 0:00:48]} 18. fxe5 {[%clk 0:01:41]}  Nxe5 {[%clk 0:00:47]} 19. Nd4 {[%clk 0:01:41]}  Nxf3+ {[%clk 0:00:31]} 20. Qxf3 {[%clk 0:01:41]}  Bf6 {[%clk 0:00:26]} 21. Be3 {[%clk 0:01:39]}  Qa8 {[%clk 0:00:18]} 22. Qg3 {[%clk 0:01:33]}  Be5 {[%clk 0:00:11]} 23. Bf4 {[%clk 0:01:32]}  Re8 {[%clk 0:00:05]} 24. Nf5 {[%clk 0:01:31]}  g6 {[%clk 0:00:02]} 25. Bxe5 {[%clk 0:01:29]}  Rxe5 {[%clk 0:00:02]} 26. Nh6+ {[%clk 0:01:29]}  Kh7 {[%clk 0:00:02]} 27. Nxf7 {[%clk 0:01:26]}  Bxd5 {[%clk 0:00:02]} 28. Nxe5 {[%clk 0:01:24]}  dxe5 {[%clk 0:00:02]} 29. Rad1 {[%clk 0:01:22]}  Kg7 {[%clk 0:00:02]} 30. Qxe5+ {[%clk 0:01:21]}  Kh6 {[%clk 0:00:01]} 31. Qxd5 {[%clk 0:01:22]} 1-0


[Site "https://www.chess.com"]

[Event "Titled Tuesday Blitz November 22 Late 2022"]
[White "Averjanov, Alexey"]
[Black "monkins"]
[WhiteFideId "14109867"]
[WhiteElo "2613"]
[BlackElo "2243"]
[Result "0-1"]
[Round "01"]
[TimeControl "180+1"]
[Date "2022.11.23"]
[WhiteClock "0:01:40"]
[BlackClock "0:00:08"]

1. d4 {[%clk 0:03:00]}  Nf6 {[%clk 0:02:51]} 2. c4 {[%clk 0:02:59]}  c5 {[%clk 0:02:52]} 3. d5 {[%clk 0:02:58]}  b5 {[%clk 0:02:52]} 4. Nf3 {[%clk 0:02:59]}  b4 {[%clk 0:02:49]} 5. a3 {[%clk 0:02:58]}  g6 {[%clk 0:02:45]} 6. axb4 {[%clk 0:02:58]}  cxb4 {[%clk 0:02:46]} 7. Nbd2 {[%clk 0:02:51]}  Bg7 {[%clk 0:02:43]} 8. e4 {[%clk 0:02:51]}  O-O {[%clk 0:02:24]} 9. e5 {[%clk 0:02:50]}  Ng4 {[%clk 0:02:24]} 10. Be2 {[%clk 0:02:40]}  Nxe5 {[%clk 0:02:22]} 11. Nxe5 {[%clk 0:02:41]}  Bxe5 {[%clk 0:02:20]} 12. Nf3 {[%clk 0:02:41]}  Bg7 {[%clk 0:02:16]} 13. O-O {[%clk 0:02:42]}  d6 {[%clk 0:02:16]} 14. Re1 {[%clk 0:02:36]}  Bg4 {[%clk 0:02:14]} 15. Nd4 {[%clk 0:02:35]}  Bd7 {[%clk 0:01:46]} 16. b3 {[%clk 0:02:34]}  Re8 {[%clk 0:01:35]} 17. Bb2 {[%clk 0:02:34]}  Qb6 {[%clk 0:01:23]} 18. Bg4 {[%clk 0:02:31]}  a5 {[%clk 0:00:55]} 19. Re3 {[%clk 0:02:24]}  a4 {[%clk 0:00:36]} 20. Bxd7 {[%clk 0:02:21]}  Nxd7 {[%clk 0:00:36]} 21. bxa4 {[%clk 0:02:17]}  Ne5 {[%clk 0:00:29]} 22. Qb3 {[%clk 0:02:13]}  Rec8 {[%clk 0:00:22]} 23. Rc1 {[%clk 0:02:13]}  Qa6 {[%clk 0:00:20]} 24. Nc6 {[%clk 0:01:59]}  Nxc6 {[%clk 0:00:19]} 25. Bxg7 {[%clk 0:01:59]}  Kxg7 {[%clk 0:00:17]} 26. dxc6 {[%clk 0:01:59]}  Qxa4 {[%clk 0:00:15]} 27. Qb2+ {[%clk 0:01:59]}  e5 {[%clk 0:00:14]} 28. c5 {[%clk 0:01:57]}  Rxc6 {[%clk 0:00:13]} 29. cxd6 {[%clk 0:01:55]}  Rxc1+ {[%clk 0:00:13]} 30. Qxc1 {[%clk 0:01:56]}  Qa1 {[%clk 0:00:13]} 31. Re1 {[%clk 0:01:56]}  Qxc1 {[%clk 0:00:12]} 32. Rxc1 {[%clk 0:01:57]}  b3 {[%clk 0:00:09]} 33. g4 {[%clk 0:01:42]}  b2 {[%clk 0:00:08]} 34. Rb1 {[%clk 0:01:39]}  Ra1 {[%clk 0:00:08]} 35. d7 {[%clk 0:01:38]}  Rxb1+ {[%clk 0:00:08]} 36. Kg2 {[%clk 0:01:39]}  Rd1 {[%clk 0:00:09]} 37. d8=Q {[%clk 0:01:40]}  Rxd8 {[%clk 0:00:08]} 0-1


[Site "https://www.chess.com"]

[Event "Titled Tuesday Blitz November 22 Late 2022"]
[White "Bobkov, Vadim"]
[Black "Cortes Orihuela, Javier"]
[WhiteFideId "34110876"]
[BlackFideId "3414329"]
[WhiteElo "2172"]
[BlackElo "2080"]
[Result "1/2-1/2"]
[Round "01"]
[TimeControl "180+1"]
[Date "2022.11.23"]
[WhiteClock "0:00:15"]
[BlackClock "0:00:02"]

1. d4 {[%clk 0:02:39]}  d5 {[%clk 0:02:59]} 2. c4 {[%clk 0:02:39]}  dxc4 {[%clk 0:03:00]} 3. Nf3 {[%clk 0:02:39]}  Nf6 {[%clk 0:03:00]} 4. e3 {[%clk 0:02:39]}  Bg4 {[%clk 0:03:00]} 5. Bxc4 {[%clk 0:02:40]}  e6 {[%clk 0:03:00]} 6. h3 {[%clk 0:02:40]}  Bh5 {[%clk 0:02:59]} 7. O-O {[%clk 0:02:40]}  Nc6 {[%clk 0:02:57]} 8. Nc3 {[%clk 0:02:33]}  Bd6 {[%clk 0:02:52]} 9. b3 {[%clk 0:02:33]}  O-O {[%clk 0:02:52]} 10. Bb2 {[%clk 0:02:33]}  a6 {[%clk 0:02:52]} 11. Rc1 {[%clk 0:02:31]}  Qe7 {[%clk 0:02:52]} 12. Re1 {[%clk 0:02:25]}  Rad8 {[%clk 0:02:51]} 13. Qe2 {[%clk 0:02:24]}  e5 {[%clk 0:02:51]} 14. d5 {[%clk 0:02:24]}  e4 {[%clk 0:02:49]} 15. dxc6 {[%clk 0:02:16]}  exf3 {[%clk 0:02:49]} 16. gxf3 {[%clk 0:02:16]}  Qe5 {[%clk 0:02:35]} 17. f4 {[%clk 0:02:13]}  Qf5 {[%clk 0:02:34]} 18. Qf1 {[%clk 0:02:11]}  Bf3 {[%clk 0:02:28]} 19. Bd3 {[%clk 0:01:43]}  Qh5 {[%clk 0:02:23]} 20. Be2 {[%clk 0:01:43]}  bxc6 {[%clk 0:02:15]} 21. Bxf3 {[%clk 0:01:32]}  Qxf3 {[%clk 0:02:16]} 22. Qg2 {[%clk 0:01:33]}  Qxg2+ {[%clk 0:01:42]} 23. Kxg2 {[%clk 0:01:34]}  Bb4 {[%clk 0:01:31]} 24. Re2 {[%clk 0:01:34]}  Rd7 {[%clk 0:01:23]} 25. Na4 {[%clk 0:01:30]}  Rfd8 {[%clk 0:00:53]} 26. Bxf6 {[%clk 0:01:15]}  gxf6 {[%clk 0:00:54]} 27. Rxc6 {[%clk 0:01:16]}  Rd2 {[%clk 0:00:53]} 28. Rc2 {[%clk 0:01:13]}  Rxe2 {[%clk 0:00:52]} 29. Rxe2 {[%clk 0:01:14]}  Rd1 {[%clk 0:00:31]} 30. Rc2 {[%clk 0:01:14]}  Ra1 {[%clk 0:00:29]} 31. f5 {[%clk 0:01:06]}  Kf8 {[%clk 0:00:18]} 32. Kf3 {[%clk 0:01:03]}  Ke8 {[%clk 0:00:18]} 33. Ke4 {[%clk 0:00:41]}  Bd6 {[%clk 0:00:15]} 34. Nc3 {[%clk 0:00:36]}  Rh1 {[%clk 0:00:14]} 35. Nd5 {[%clk 0:00:36]}  Rxh3 {[%clk 0:00:11]} 36. Nxc7+ {[%clk 0:00:31]}  Bxc7 {[%clk 0:00:11]} 37. Rxc7 {[%clk 0:00:32]}  Rh2 {[%clk 0:00:10]} 38. Kf3 {[%clk 0:00:31]}  h5 {[%clk 0:00:10]} 39. Rc6 {[%clk 0:00:29]}  h4 {[%clk 0:00:08]} 40. Rxa6 {[%clk 0:00:27]}  Rh1 {[%clk 0:00:09]} 41. Rxf6 {[%clk 0:00:27]}  Ra1 {[%clk 0:00:07]} 42. a4 {[%clk 0:00:26]}  Rb1 {[%clk 0:00:05]} 43. Rb6 {[%clk 0:00:26]}  Rb2 {[%clk 0:00:05]} 44. Kg4 {[%clk 0:00:23]}  Kd7 {[%clk 0:00:05]} 45. Kxh4 {[%clk 0:00:22]}  Rxf2 {[%clk 0:00:04]} 46. Rb5 {[%clk 0:00:22]}  Kc6 {[%clk 0:00:04]} 47. Kg3 {[%clk 0:00:22]}  Rf1 {[%clk 0:00:03]} 48. e4 {[%clk 0:00:22]}  f6 {[%clk 0:00:02]} 49. Kg4 {[%clk 0:00:20]}  Rg1+ {[%clk 0:00:02]} 50. Kh5 {[%clk 0:00:21]}  Kd6 {[%clk 0:00:02]} 51. a5 {[%clk 0:00:19]}  Rg5+ {[%clk 0:00:02]} 52. Kh4 {[%clk 0:00:19]}  Rg1 {[%clk 0:00:03]} 53. Rb6+ {[%clk 0:00:19]}  Ke5 {[%clk 0:00:03]} 54. a6 {[%clk 0:00:19]}  Ra1 {[%clk 0:00:02]} 55. b4 {[%clk 0:00:19]}  Kf4 {[%clk 0:00:02]} 56. Kh3 {[%clk 0:00:18]}  Kf3 {[%clk 0:00:03]} 57. Kh2 {[%clk 0:00:18]}  Ra2+ {[%clk 0:00:03]} 58. Kh3 {[%clk 0:00:15]}  Ra1 {[%clk 0:00:03]} 59. Kh2 {[%clk 0:00:14]}  Ra2+ {[%clk 0:00:02]} 60. Kg1 {[%clk 0:00:14]}  Ra1+ {[%clk 0:00:02]} 61. Kh2 {[%clk 0:00:15]} 1/2-1/2


[Site "https://www.chess.com"]